fUSD/lending_fUSD_20260627
["ID","MTS","AMOUNT","RATE_DAILY","PERIOD"]
[426521174,1782528641000,-168.47,0.00036017,7]
[426521168,1782528641000,-219.78734242,0.0003599,2]
[426521155,1782528641000,-168.47,0.00035712,30]
[426521180,1782528641000,-168.0,0.0003617,30]
[426521169,1782528641000,-172.92,0.00036,31]
[426521167,1782528641000,-165.77,0.0003597,98]
[426521164,1782528641000,-164.71574738,0.00035918,2]
[426521172,1782528641000,-28000.0,0.00036,30]
[426521179,1782528641000,-151.78263989,0.00036164,10]
[426521177,1782528641000,-600.0,0.000361,13]
[426521189,1782528641000,-161.74,0.00036213,30]
[426521173,1782528641000,-167.99,0.00036017,7]
[426521181,1782528641000,-168.47,0.0003617,30]
[426521183,1782528641000,-595.75822566,0.00036197,2]
[426521185,1782528641000,-325.51,0.000362,7]
[426521184,1782528641000,-325.96,0.000362,7]
[426521188,1782528641000,-161.76,0.00036212,30]
[426521187,1782528641000,-151.78263976,0.00036201,15]
[426521186,1782528641000,-900.0,0.000362,13]
[426521193,1782528641000,-364.97608846,0.00036289,8]
[426521182,1782528641000,-379.64794082,0.0003618,30]
[426521190,1782528641000,-317.10091969,0.00036219,2]
[426521154,1782528641000,-167.99,0.00035711,30]
[426521178,1782528641000,-373.29281964,0.00036144,10]
[426521166,1782528641000,-161.74,0.00035944,2]
[426521140,1782528641000,-3000.0,0.00035616,2]
[426521157,1782528641000,-152.48,0.00035824,2]
[426521191,1782528641000,-152.48,0.00036242,7]
[426521135,1782528641000,-3000.0,0.00035616,2]
[426521138,1782528641000,-3000.0,0.00035616,2]
[426521136,1782528641000,-3000.0,0.00035616,2]
[426521139,1782528641000,-3000.0,0.00035616,2]
[426521137,1782528641000,-3000.0,0.00035616,2]
[426521141,1782528641000,-3000.0,0.00035616,2]
[426521134,1782528641000,-3000.0,0.00035616,2]
[426521145,1782528641000,-151.0,0.00035616,7]
[426521151,1782528641000,-9125.35849426,0.00035658,5]
[426521143,1782528641000,-151.0,0.00035616,7]
[426521147,1782528641000,-222.08633095,0.00035616,2]
[426521148,1782528641000,-236.3,0.00035616,2]
[426521153,1782528641000,-161.74,0.00035675,7]
[426521146,1782528641000,-151.0,0.00035616,7]
[426521144,1782528641000,-151.0,0.00035616,7]
[426521142,1782528641000,-1712.97643721,0.00035616,2]
[426521149,1782528641000,-165.57812834,0.00035652,14]
[426521150,1782528641000,-501.0,0.00035654,3]
[426521152,1782528641000,-161.76,0.00035674,7]
[426521158,1782528641000,-152.49,0.00035824,2]
[426521160,1782528641000,-168.47,0.00035865,2]
[426521162,1782528641000,-325.51,0.000359,7]
[426521156,1782528641000,-4722.18582084,0.00035756,2]
[426521165,1782528641000,-161.76,0.00035943,2]
[426521163,1782528641000,-400.0,0.000359,13]
[426521159,1782528641000,-167.99,0.00035864,2]
[426521161,1782528641000,-179.2,0.000359,120]
[426521192,1782528641000,-152.49,0.00036242,7]
[426521170,1782528641000,-292.57,0.00036,30]
[426521205,1782528641000,-164.71574738,0.00036319,2]
[426521228,1782528641000,-161.037412,0.000365,30]
[426521230,1782528641000,-151.0,0.00036515,30]
[426521226,1782528641000,-151.0,0.000365,30]
[426521231,1782528641000,-150.0,0.00036543,2]
[426521229,1782528641000,-7338.0,0.00036515,60]
[426521227,1782528641000,-151.0,0.000365,30]
[426521233,1782528641000,-1500.0,0.0003658,10]
[426521234,1782528641000,-4602.28497777,0.000366,120]
[426521235,1782528641000,-200.0,0.000366,13]
[426521236,1782528641000,-317.10091968,0.00036668,2]
[426521238,1782528641000,-164.71574738,0.00036721,2]
[426521237,1782528641000,-200.0,0.000367,13]
[426521239,1782528641000,-40195.36325445,0.00036728,2]
[426521241,1782528641000,-300.0,0.00036799,10]
[426521240,1782528641000,-200.0,0.00036793,10]
[426521249,1782528641000,-179.2,0.000369,120]
[426521250,1782528641000,-714.22647788,0.000369,30]
[426521251,1782528641000,-3000.0,0.000369,2]
[426521242,1782528641000,-300.0,0.00036799,10]
[426521246,1782528641000,-5649.65683625,0.00036849,30]
[426521247,1782528641000,-480.24804754,0.00036895,60]
[426521245,1782528641000,-170.0,0.00036841,7]
[426521244,1782528641000,-507.0,0.000368,13]
[426521248,1782528641000,-311.9832,0.000369,120]
[426521252,1782528641000,-165.78,0.000369,120]
[426521253,1782528641000,-191.82,0.0003691,30]
[426521195,1782528641000,-364.97608837,0.00036289,8]
[426521224,1782528641000,-200.0,0.000365,13]
[426521225,1782528641000,-151.0,0.000365,30]
[426521243,1782528641000,-106663.9,0.000368,31]
[426521223,1782528641000,-462.474353,0.000365,30]
[426521221,1782528641000,-462.474353,0.000365,30]
[426521206,1782528641000,-501.0,0.00036336,4]
[426521200,1782528641000,-364.97608837,0.00036289,8]
[426521199,1782528641000,-364.97608837,0.00036289,8]
[426521196,1782528641000,-364.97608837,0.00036289,8]
[426521198,1782528641000,-364.97608837,0.00036289,8]
[426521194,1782528641000,-364.97608837,0.00036289,8]
[426521197,1782528641000,-364.97608837,0.00036289,8]
[426521203,1782528641000,-958.50350425,0.0003629,2]
[426521202,1782528641000,-364.97608837,0.00036289,8]
[426521204,1782528641000,-1100.0,0.000363,13]
[426521207,1782528641000,-178.01,0.00036347,7]
[426521209,1782528641000,-150.0,0.00036399,60]
[426521211,1782528641000,-500.0,0.00036415,120]
[426521201,1782528641000,-364.97608837,0.00036289,8]
[426521218,1782528641000,-76370.52648887,0.000365,120]
[426521232,1782528641000,-985.80836354,0.00036544,2]
[426521213,1782528641000,-151.78263976,0.00036461,19]
[426521222,1782528641000,-462.474353,0.000365,30]
[426521217,1782528641000,-300.0,0.00036499,10]
[426521220,1782528641000,-462.474353,0.000365,30]
[426521216,1782528641000,-300.0,0.00036499,10]
[426521215,1782528641000,-161.74,0.00036482,7]
[426521210,1782528641000,-200.0,0.000364,13]
[426521208,1782528641000,-364.97608837,0.00036365,8]
[426521219,1782528641000,-325.51,0.000365,7]
[426521254,1782528641000,-191.82,0.0003691,120]
[426521212,1782528641000,-165.77,0.0003643,114]
[426521214,1782528641000,-161.76,0.00036481,7]
[426521279,1782528642000,-151.0,0.0003703,30]
[426521277,1782528642000,-619.87525053,0.00037021,2]
[426521287,1782528642000,-462.474353,0.0003705,30]
[426521280,1782528642000,-151.0,0.0003703,30]
[426521281,1782528642000,-1688.93635203,0.0003703,2]
[426521284,1782528642000,-3043.0,0.0003705,120]
[426521282,1782528642000,-169.00082459,0.0003703,2]
[426521286,1782528642000,-462.474353,0.0003705,30]
[426521285,1782528642000,-462.474353,0.0003705,30]
[426521295,1782528642000,-3850.09,0.000371,120]
[426521290,1782528642000,-178.0,0.0003709,120]
[426521289,1782528642000,-1688.93635201,0.00037076,2]
[426521291,1782528642000,-300.0,0.00037099,10]
[426521294,1782528642000,-150.0,0.000371,120]
[426521292,1782528642000,-300.0,0.00037099,10]
[426521300,1782528642000,-722.396,0.000371,120]
[426521298,1782528642000,-196.44,0.000371,30]
[426521288,1782528642000,-462.474353,0.0003705,30]
[426521293,1782528642000,-656255.68143143,0.000371,120]
[426521283,1782528642000,-4266.0,0.0003705,120]
[426521278,1782528642000,-151.0,0.0003703,30]
[426521260,1782528642000,-157.59388587,0.00036989,22]
[426521274,1782528642000,-160.0,0.00037,120]
[426521297,1782528642000,-193.07,0.000371,30]
[426521263,1782528642000,-1390.44926447,0.00037,120]
[426521264,1782528642000,-800.0,0.00037,45]
[426521255,1782528642000,-184.99697623,0.00036956,30]
[426521256,1782528642000,-240.11,0.00036962,7]
[426521257,1782528642000,-500.0,0.00036986,30]
[426521258,1782528642000,-500.0,0.00036986,30]
[426521259,1782528642000,-314.04556351,0.00036986,30]
[426521261,1782528642000,-204.9,0.00036999,14]
[426521265,1782528642000,-251.18200478,0.00037,120]
[426521267,1782528642000,-38004.02229006,0.00037,30]
[426521273,1782528642000,-3513.1536109,0.00037,120]
[426521268,1782528642000,-632.40991116,0.00037,120]
[426521266,1782528642000,-257.50432897,0.00037,30]
[426521276,1782528642000,-501.0,0.00037018,5]
[426521270,1782528642000,-7318.0,0.00037,117]
[426521271,1782528642000,-10000.0,0.00037,30]
[426521275,1782528642000,-160.0,0.00037,120]
[426521269,1782528642000,-152.0,0.00037,30]
[426521272,1782528642000,-330.0,0.00037,120]
[426521296,1782528642000,-600.94,0.000371,120]
[426521262,1782528642000,-250.0,0.00037,7]
[426521308,1782528642000,-462.474353,0.000371,30]
[426521329,1782528642000,-196.62,0.00037168,60]
[426521327,1782528642000,-204.66,0.00037166,60]
[426521326,1782528642000,-151.78263976,0.00037164,24]
[426521328,1782528642000,-3267.61,0.00037167,14]
[426521330,1782528642000,-184.76,0.00037175,7]
[426521331,1782528642000,-219.78734242,0.0003718,2]
[426521333,1782528642000,-254.42,0.00037183,120]
[426521332,1782528642000,-150.0,0.00037182,60]
[426521334,1782528642000,-327.0,0.00037189,120]
[426521324,1782528642000,-7214.17,0.00037136,2]
[426521335,1782528642000,-1030.44,0.00037189,120]
[426521336,1782528642000,-300.0,0.00037189,10]
[426521345,1782528642000,-4365.33563681,0.000372,120]
[426521338,1782528642000,-244.0,0.0003719,120]
[426521339,1782528642000,-2465.95979883,0.00037197,120]
[426521341,1782528642000,-334.92269674,0.00037197,2]
[426521342,1782528642000,-300.0,0.00037199,10]
[426521343,1782528642000,-18732.78972696,0.000372,120]
[426521344,1782528642000,-1267.21027304,0.000372,120]
[426521346,1782528642000,-568.13833919,0.000372,120]
[426521337,1782528642000,-1015350.23392593,0.0003719,120]
[426521325,1782528642000,-1030.44,0.00037144,120]
[426521299,1782528642000,-150.0,0.000371,15]
[426521322,1782528642000,-151.0,0.0003713,30]
[426521323,1782528642000,-5000.0,0.00037131,7]
[426521305,1782528642000,-1030.44,0.000371,120]
[426521301,1782528642000,-161.14182131,0.000371,120]
[426521306,1782528642000,-462.474353,0.000371,30]
[426521303,1782528642000,-325.96,0.000371,7]
[426521302,1782528642000,-157.69845179,0.000371,60]
[426521304,1782528642000,-151.0,0.000371,30]
[426521307,1782528642000,-462.474353,0.000371,30]
[426521312,1782528642000,-317.10091968,0.00037116,2]
[426521313,1782528642000,-4722.18582084,0.00037116,2]
[426521310,1782528642000,-500.0,0.000371,120]
[426521311,1782528642000,-204.66,0.00037116,60]
[426521314,1782528642000,-452.85679289,0.00037116,2]
[426521315,1782528642000,-9182.79477115,0.00037116,2]
[426521317,1782528642000,-164.71574738,0.00037122,2]
[426521316,1782528642000,-196.62,0.00037118,60]
[426521318,1782528642000,-1688.93635201,0.00037122,2]
[426521319,1782528642000,-300.0,0.00037129,10]
[426521320,1782528642000,-308.5227113,0.00037129,10]
[426521321,1782528642000,-428788.23304009,0.0003713,14]
[426521309,1782528642000,-462.474347,0.000371,30]
[426521350,1782528643000,-178.01,0.00036661,2]
[426521351,1782528643000,-1050.47000001,0.000372,120]
[426521348,1782528643000,-178.01,0.00035407,30]
[426521353,1782528643000,-161.7,0.00035406,30]
[426521352,1782528643000,-666.36661307,0.000372,120]
[426521354,1782528643000,-2338.6252123,0.000372,120]
[426521349,1782528643000,-178.01,0.00036034,7]
[426521358,1782528646000,-161.7,0.00035944,2]
[426521359,1782528646000,-47.41000409,0.00036213,30]
[426521357,1782528646000,-161.7,0.00035675,7]
[426521360,1782528646000,-114.28999591,0.00036213,30]
[426521361,1782528646000,-4763.56616685,0.0003719,10]
[426521362,1782528646000,-1788.56383315,0.0003719,10]
[426521363,1782528646000,-4232.83677146,0.000372,120]
[426521364,1782528857000,2907.863897,0.00014,2]
[426521365,1782528891000,726.955975,0.00014,2]
[426521371,1782529048000,519.99099925,0.00013699,2]
[426521374,1782529166000,500.0,0.00037289,120]
[426521376,1782529167000,220.55911033,0.00037289,120]
[426521375,1782529167000,500.0,0.00037289,120]
[426521380,1782529218000,524.20507361,0.0003729,120]
[426521379,1782529218000,500.0,0.0003729,120]
[426521378,1782529218000,500.0,0.0003729,120]
[426521377,1782529218000,500.0,0.0003729,120]
[426521382,1782529361000,307.58,0.00012625,2]
[426521383,1782529361000,307.58,0.00012822,2]
[426521384,1782529383000,504.9565,0.00037295,120]
[426521385,1782529384000,504.9565,0.00037295,120]
[426521386,1782529385000,504.9565,0.00037295,120]
[426521388,1782529385000,504.9565,0.00037295,120]
[426521387,1782529385000,504.9565,0.00037295,120]
[426521390,1782529386000,504.9565,0.00037295,120]
[426521389,1782529386000,504.9565,0.00037295,120]
[426521392,1782529387000,504.9565,0.00037295,120]
[426521391,1782529387000,504.9565,0.00037295,120]
[426521393,1782529388000,504.9565,0.00037295,120]
[426521394,1782529388000,504.9565,0.00037295,120]
[426521397,1782529389000,504.9565,0.00037295,120]
[426521396,1782529389000,504.9565,0.00037295,120]
[426521395,1782529389000,504.9565,0.00037295,120]
[426521399,1782529390000,504.9565,0.00037295,120]
[426521398,1782529390000,504.9565,0.00037295,120]
[426521401,1782529391000,504.9565,0.00037295,120]
[426521400,1782529391000,504.9565,0.00037295,120]
[426521402,1782529392000,504.9565,0.00037295,120]
[426521403,1782529392000,504.9565,0.00037295,120]
[426521404,1782529392000,504.9565,0.00037295,120]
[426521406,1782529393000,504.957,0.00037295,120]
[426521405,1782529393000,504.9565,0.00037295,120]
[426521407,1782529447000,363.146752,7.945e-05,2]
[426521408,1782529512000,590.14119414,0.00037295,120]
[426521409,1782529591000,398.08069849,0.0001,2]
[426521411,1782529603000,169.59,0.00012843,2]
[426521410,1782529603000,169.59,0.00012408,2]
[426521412,1782529639000,173.34,0.0001043,2]
[426521413,1782529727000,1852.42,0.00012994,2]
[426521416,1782529746000,-211.04782431,0.00013019,2]
[426521414,1782529746000,-307.58,0.00013019,2]
[426521415,1782529746000,-295.76216091,0.00013019,2]
[426521417,1782529746000,-234.71,0.00013022,2]
[426521419,1782529746000,-307.58,0.00013151,2]
[426521420,1782529746000,-307.58,0.00013216,2]
[426521418,1782529746000,-1125.5,0.00013038,2]
[426521421,1782529746000,-307.58,0.00013219,2]
[426521424,1782529746000,-211.04782431,0.00013288,2]
[426521422,1782529746000,-169.59,0.00013278,2]
[426521425,1782529746000,-234.71,0.00013348,2]
[426521426,1782529746000,-200.0,0.0001335,2]
[426521428,1782529746000,-856.53502647,0.00013399,2]
[426521427,1782529746000,-307.58,0.00013356,2]
[426521423,1782529746000,-307.58,0.00013288,2]
[426521432,1782529831000,-401.65,0.00013209,2]
[426521476,1782529832000,-274.32490188,0.00013699,2]
[426521470,1782529832000,-274.32490188,0.00013699,2]
[426521472,1782529832000,-274.32490188,0.00013699,2]
[426521478,1782529832000,-152.0,0.00013699,2]
[426521468,1782529832000,-274.32490188,0.00013699,2]
[426521485,1782529832000,-271.28599115,0.00013699,2]
[426521483,1782529832000,-152.0,0.00013699,2]
[426521484,1782529832000,-152.0,0.00013699,2]
[426521479,1782529832000,-152.0,0.00013699,2]
[426521505,1782529832000,-503.5809451,0.00013973,2]
[426521480,1782529832000,-152.0,0.00013699,2]
[426521474,1782529832000,-274.32490188,0.00013699,2]
[426521482,1782529832000,-152.0,0.00013699,2]
[426521486,1782529832000,-424.38443572,0.00013699,2]
[426521497,1782529832000,-166.07,0.00013724,2]
[426521498,1782529832000,-307.58,0.00013767,2]
[426521489,1782529832000,-424.38443572,0.00013699,2]
[426521490,1782529832000,-424.38443572,0.00013699,2]
[426521487,1782529832000,-424.38443572,0.00013699,2]
[426521493,1782529832000,-424.38443572,0.00013699,2]
[426521491,1782529832000,-424.38443572,0.00013699,2]
[426521495,1782529832000,-424.38443572,0.00013699,2]
[426521496,1782529832000,-169.59,0.00013714,2]
[426521492,1782529832000,-424.38443572,0.00013699,2]
[426521494,1782529832000,-424.38443572,0.00013699,2]
[426521481,1782529832000,-152.0,0.00013699,2]
[426521499,1782529832000,-307.58,0.00013808,2]
[426521503,1782529832000,-506.7044339,0.00013937,2]
[426521501,1782529832000,-307.58,0.00013904,2]
[426521488,1782529832000,-424.38443572,0.00013699,2]
[426521466,1782529832000,-274.32490188,0.00013699,2]
[426521444,1782529832000,-307.62,0.0001367,2]
[426521463,1782529832000,-274.32490188,0.00013699,2]
[426521433,1782529832000,-168.62,0.00013223,2]
[426521434,1782529832000,-15.41234826,0.00013399,2]
[426521438,1782529832000,-307.58,0.00013425,2]
[426521437,1782529832000,-274.15403783,0.00013414,2]
[426521436,1782529832000,-33.42596217,0.00013414,2]
[426521435,1782529832000,-353.67903783,0.00013399,2]
[426521439,1782529832000,-307.58,0.00013493,2]
[426521440,1782529832000,-211.04782431,0.00013493,2]
[426521441,1782529832000,-307.58,0.00013562,2]
[426521447,1782529832000,-307.58,0.00013699,2]
[426521442,1782529832000,-307.58,0.00013611,2]
[426521452,1782529832000,-161.49,0.00013699,2]
[426521443,1782529832000,-307.58,0.0001363,2]
[426521446,1782529832000,-150.0,0.00013698,2]
[426521448,1782529832000,-200.0,0.00013699,2]
[426521451,1782529832000,-193.79,0.00013699,2]
[426521450,1782529832000,-232.55,0.00013699,2]
[426521445,1782529832000,-234.71,0.00013673,2]
[426521449,1782529832000,-279.06,0.00013699,2]
[426521453,1782529832000,-17.19979236,0.00013699,2]
[426521458,1782529832000,-1916.42964002,0.00013699,2]
[426521459,1782529832000,-723.84,0.00013699,2]
[426521457,1782529832000,-320.124,0.00013699,2]
[426521454,1782529832000,-144.29020764,0.00013699,2]
[426521456,1782529832000,-263.44635998,0.00013699,2]
[426521455,1782529832000,-645.98,0.00013699,2]
[426521461,1782529832000,-29262.67900075,0.00013699,2]
[426521460,1782529832000,-500.0,0.00013699,2]
[426521462,1782529832000,-274.32490188,0.00013699,2]
[426521464,1782529832000,-274.32490188,0.00013699,2]
[426521512,1782529832000,-307.58,0.00014247,2]
[426521536,1782529832000,-500.0,0.00014999,2]
[426521500,1782529832000,-307.58,0.00013836,2]
[426521542,1782529832000,-500.0,0.00014999,2]
[426521552,1782529832000,-500.0,0.00014999,2]
[426521545,1782529832000,-535.7374899,0.00014999,2]
[426521550,1782529832000,-500.0,0.00014999,2]
[426521547,1782529832000,-500.0,0.00014999,2]
[426521541,1782529832000,-500.0,0.00014999,2]
[426521543,1782529832000,-500.0,0.00014999,2]
[426521549,1782529832000,-506.53508562,0.00014999,2]
[426521548,1782529832000,-501.45512008,0.00014999,2]
[426521551,1782529832000,-473.10064545,0.00014999,2]
[426521544,1782529832000,-500.0,0.00014999,2]
[426521546,1782529832000,-500.0,0.00014999,2]
[426521553,1782529832000,-500.0,0.00014999,2]
[426521564,1782529832000,-500.0,0.00014999,2]
[426521554,1782529832000,-500.0,0.00014999,2]
[426521565,1782529832000,-280.84439805,0.00014999,2]
[426521566,1782529832000,-500.0,0.00014999,2]
[426521555,1782529832000,-500.0,0.00014999,2]
[426521559,1782529832000,-500.0,0.00014999,2]
[426521558,1782529832000,-500.0,0.00014999,2]
[426521556,1782529832000,-500.0,0.00014999,2]
[426521561,1782529832000,-500.0,0.00014999,2]
[426521560,1782529832000,-500.0,0.00014999,2]
[426521563,1782529832000,-500.0,0.00014999,2]
[426521557,1782529832000,-634.14162766,0.00014999,2]
[426521562,1782529832000,-500.0,0.00014999,2]
[426521569,1782529832000,-500.0,0.00014999,2]
[426521568,1782529832000,-500.0,0.00014999,2]
[426521502,1782529832000,-160.0,0.00013936,2]
[426521540,1782529832000,-500.0,0.00014999,2]
[426521537,1782529832000,-500.0,0.00014999,2]
[426521567,1782529832000,-500.0,0.00014999,2]
[426521535,1782529832000,-505.40601264,0.00014999,2]
[426521534,1782529832000,-500.0,0.00014999,2]
[426521513,1782529832000,-307.58,0.00014315,2]
[426521506,1782529832000,-60000.0,0.0001399,2]
[426521511,1782529832000,-307.58,0.00014178,2]
[426521504,1782529832000,-307.58,0.00013973,2]
[426521508,1782529832000,-1694.73385559,0.00014,2]
[426521509,1782529832000,-307.58,0.00014041,2]
[426521507,1782529832000,-234.71,0.00013999,2]
[426521510,1782529832000,-307.58,0.0001411,2]
[426521514,1782529832000,-234.71,0.00014325,2]
[426521515,1782529832000,-307.58,0.00014384,2]
[426521525,1782529832000,-500.0,0.00014999,2]
[426521518,1782529832000,-307.58,0.00014579,2]
[426521520,1782529832000,-307.58,0.00014759,2]
[426521521,1782529832000,-255.0,0.00014821,2]
[426521516,1782529832000,-307.58,0.00014399,2]
[426521517,1782529832000,-307.58,0.00014489,2]
[426521533,1782529832000,-500.0,0.00014999,2]
[426521529,1782529832000,-963.95,0.00014999,2]
[426521530,1782529832000,-963.95,0.00014999,2]
[426521532,1782529832000,-500.0,0.00014999,2]
[426521524,1782529832000,-307.58,0.00014939,2]
[426521538,1782529832000,-500.0,0.00014999,2]
[426521527,1782529832000,-500.0,0.00014999,2]
[426521531,1782529832000,-500.0,0.00014999,2]
[426521539,1782529832000,-500.0,0.00014999,2]
[426521526,1782529832000,-500.0,0.00014999,2]
[426521523,1782529832000,-11899.51146177,0.00014899,2]
[426521522,1782529832000,-307.58,0.00014849,2]
[426521519,1782529832000,-307.58,0.00014669,2]
[426521528,1782529832000,-500.0,0.00014999,2]
[426521572,1782529833000,-513.63965224,0.00014999,2]
[426521570,1782529833000,-284.15279055,0.00014999,2]
[426521571,1782529833000,-500.0,0.00014999,2]
[426521576,1782529833000,-500.0,0.00014999,2]
[426521573,1782529833000,-4164.43,0.00014999,2]
[426521574,1782529833000,-4164.43,0.00014999,2]
[426521579,1782529833000,-500.0,0.00014999,2]
[426521575,1782529833000,-260.57815283,0.00014999,2]
[426521583,1782529833000,-300.0,0.00015,2]
[426521584,1782529833000,-546.276,0.00015,2]
[426521580,1782529833000,-91095.1049525,0.00015,2]
[426521577,1782529833000,-500.0,0.00014999,2]
[426521581,1782529833000,-19588.25124172,0.00015,2]
[426521578,1782529833000,-500.0,0.00014999,2]
[426521582,1782529833000,-486.90471485,0.00015,2]
[426521653,1782529838000,-886.89,0.00021114,2]
[426521649,1782529838000,-766.47,0.00021114,2]
[426521643,1782529838000,-291.78502562,0.00020745,2]
[426521644,1782529838000,-398.0,0.00021,2]
[426521645,1782529838000,-403.0,0.00021,2]
[426521650,1782529838000,-500.0,0.00021114,2]
[426521646,1782529838000,-150.0,0.00021,2]
[426521651,1782529838000,-500.0,0.00021114,2]
[426521647,1782529838000,-500.0,0.00021114,2]
[426521655,1782529838000,-600.63654995,0.00021114,2]
[426521664,1782529838000,-11899.5114617,0.00022299,2]
[426521652,1782529838000,-336.77434102,0.00021114,2]
[426521656,1782529838000,-500.0,0.00021576,2]
[426521654,1782529838000,-500.0,0.00021114,2]
[426521658,1782529838000,-218.18943365,0.000219,2]
[426521657,1782529838000,-160.0,0.00021701,2]
[426521661,1782529838000,-5000.0,0.00021918,2]
[426521659,1782529838000,-500.0,0.00021917,2]
[426521665,1782529838000,-11422.24033411,0.00022319,2]
[426521648,1782529838000,-500.0,0.00021114,2]
[426521641,1782529838000,-11422.24033411,0.00019856,2]
[426521638,1782529838000,-1066.0,0.0001878,2]
[426521635,1782529838000,-11899.5114617,0.00017366,2]
[426521621,1782529838000,-2720.94,0.00014999,2]
[426521620,1782529838000,-2720.94,0.00014999,2]
[426521623,1782529838000,-307.58,0.00015029,2]
[426521622,1782529838000,-396206.13414152,0.00015,2]
[426521627,1782529838000,-500.0,0.00016438,2]
[426521625,1782529838000,-166.07,0.00015989,2]
[426521626,1782529838000,-433.0,0.0001604,2]
[426521628,1782529838000,-500.0,0.00016438,2]
[426521624,1782529838000,-170.86,0.00015047,2]
[426521629,1782529838000,-500.0,0.00016438,2]
[426521634,1782529838000,-736.0,0.00017355,2]
[426521640,1782529838000,-168.62,0.00019835,2]
[426521639,1782529838000,-11899.5114617,0.00019833,2]
[426521631,1782529838000,-500.0,0.00016438,2]
[426521633,1782529838000,-500.0,0.00016438,2]
[426521632,1782529838000,-500.0,0.00016438,2]
[426521630,1782529838000,-371.45645509,0.00016438,2]
[426521637,1782529838000,-170.86,0.00017554,2]
[426521636,1782529838000,-234.40385227,0.00017492,7]
[426521642,1782529838000,-170.86,0.00020062,2]
[426521663,1782529838000,-218.18943365,0.000221,2]
[426521673,1782529838000,-9999.99,0.00024174,2]
[426521660,1782529838000,-500.0,0.00021917,2]
[426521689,1782529838000,-766.47,0.00027396,2]
[426521693,1782529838000,-500.0,0.00027396,2]
[426521694,1782529838000,-153.78989187,0.00027397,2]
[426521695,1782529838000,-500.0,0.000275,7]
[426521692,1782529838000,-886.89,0.00027396,2]
[426521699,1782529838000,-500.0,0.00027999,2]
[426521698,1782529838000,-500.0,0.00027999,120]
[426521700,1782529838000,-183.43,0.00028025,2]
[426521696,1782529838000,-165.11,0.00027817,7]
[426521697,1782529838000,-165.24,0.00027817,7]
[426521701,1782529838000,-14060.0,0.0002912,20]
[426521703,1782529838000,-169.54,0.00029512,2]
[426521705,1782529838000,-11422.24033411,0.0002971,2]
[426521704,1782529838000,-11899.5114617,0.000297,2]
[426521706,1782529838000,-150.0,0.0003,2]
[426521707,1782529838000,-14060.0,0.0003008,20]
[426521709,1782529838000,-500.0,0.00030099,120]
[426521708,1782529838000,-500.0,0.00030099,120]
[426521662,1782529838000,-3836.87,0.00022093,2]
[426521684,1782529838000,-11899.5114617,0.00027233,2]
[426521682,1782529838000,-500.0,0.00025799,2]
[426521702,1782529838000,-843.62,0.00029301,2]
[426521688,1782529838000,-500.0,0.00027396,2]
[426521667,1782529838000,-9999.99,0.00023368,2]
[426521691,1782529838000,-500.0,0.00027396,2]
[426521666,1782529838000,-170.86,0.0002257,2]
[426521668,1782529838000,-150.99,0.00023368,2]
[426521674,1782529838000,-259.258017,0.00024287,14]